bitfinex/quotes_ETHUSD_20251025
["timestamp","ask_amount","ask_price","bid_price","bid_amount"]
[1761396501485,0.001,3954.9,3954.6,0.42609562]
[1761396501790,0.001,3954.9,3954.8,2.52857287]
[1761396501940,0.001,3954.9,3954.8,3.189]
[1761396502154,0.001,3954.9,3954.8,5.71757287]
[1761396502499,0.001,3954.9,3954.8,6.96035128]
[1761396507288,0.001,3954.9,3954.8,8.51555128]
[1761396507488,0.001,3955.3,3955.2,2.52831715]
[1761396507676,0.001,3955.3,3955.2,5.75860032]
[1761396507876,0.001,3955.3,3955.2,8.16371018]
[1761396508108,0.001,3955.3,3955.2,2.55679303]
[1761396508310,0.001,3955.3,3955.2,4.8876]
[1761396508506,0.001,3955.3,3955.2,7.90610032]
[1761396508690,0.001,3955.3,3955.2,7.42791715]
[1761396508878,0.001,3955.3,3955.2,11.02690968]
[1761396509078,0.001,3955.3,3955.2,7.89281715]
[1761396509282,0.001,3955.3,3955.2,9.26996121]
[1761396510178,0.001,3955.3,3955.2,9.77684121]
[1761396510690,0.001,3955.3,3955.2,10.53563851]
[1761396516985,0.001,3955.3,3955.2,6.05196121]
[1761396517192,0.001,3955.3,3955.2,12.40305374]
[1761396518423,0.001,3955.3,3955.2,9.26896121]
[1761396518987,0.001,3955.3,3955.2,8.80406121]
[1761396519218,0.001,3955.3,3955.2,9.24896121]
[1761396519725,0.001,3955.3,3955.2,8.80406121]
[1761396519920,0.001,3955.3,3955.2,3.3434]
[1761396520326,0.001,3955.3,3955.2,4.8986]
[1761396520490,0.001,3955.3,3955.2,3.3434]
[1761396520685,0.1007,3955.3,3955.2,3.3434]
[1761396521132,0.1007,3955.3,3955.2,0.1264]
[1761396521337,0.1007,3955.3,3955.1,3.219]
[1761396521523,0.1007,3955.3,3955.1,3.3454]
[1761396522539,3.13409253,3955.2,3955.1,3.3454]
[1761396522723,3.13409253,3955.2,3955.1,2.69628125]
[1761396522931,3.23449253,3955.2,3955.1,2.69628125]
[1761396523099,3.23449253,3955.2,3954.8,3.3444]
[1761396523302,0.2667,3955.1,3954.8,3.3444]
[1761396524301,0.40810555,3955.3,3954.8,3.3444]
[1761396524503,0.1,3955.3,3954.8,3.3444]
[1761396524839,0.099,3955.2,3954.8,3.3444]
[1761396525847,0.1687,3954.9,3953.6,0.002]
[1761396526033,0.50688,3954.2,3953.6,0.002]
[1761396526235,7.7254489,3953.7,3953.6,0.002]
[1761396526402,3.0363483,3953.4,3953.3,0.002]
[1761396526737,5.85444163,3953.4,3953.3,0.002]
[1761396526939,5.95214163,3953.4,3953.3,0.002]
[1761396527125,7.94974083,3953.4,3953.3,0.002]
[1761396527437,6.60541429,3953.4,3953.3,0.002]
[1761396527637,7.94974083,3953.4,3953.3,0.002]
[1761396528144,4.8156483,3953.4,3953.3,0.002]
[1761396529431,4.3087683,3953.4,3953.3,0.002]
[1761396529619,4.8156483,3953.4,3953.3,0.002]
[1761396531163,8.0756483,3953.4,3953.3,0.002]
[1761396531339,9.2488249,3953.4,3953.3,0.002]
[1761396535062,7.5642249,3953.4,3953.3,0.002]
[1761396535357,9.1194249,3953.4,3953.3,0.002]
[1761396535861,3.3329566,3953.4,3953.3,0.002]
[1761396536068,2.15978,3953.4,3953.3,0.002]
[1761396536661,4.6892483,3953.4,3953.3,0.002]
[1761396536826,5.41678,3953.4,3953.3,0.002]
[1761396537026,4.6892483,3953.4,3953.3,0.002]
[1761396537324,2.06208,3953.4,3953.3,0.002]
[1761396537863,2.15978,3953.4,3953.3,0.002]
[1761396538158,1.5552,3953.4,3953.3,0.002]
[1761396538528,0.50688,3953.8,3953.3,0.002]
[1761396538755,3.256,3953.9,3953.3,0.002]
[1761396538961,1.5552,3953.8,3953.3,0.002]
[1761396539333,1.6529,3953.8,3953.3,0.002]
[1761396539532,0.60458,3953.8,3953.3,0.002]
[1761396539728,0.0977,3953.7,3953.3,0.002]
[1761396540636,0.50688,3953.8,3953.3,0.002]
[1761396540841,0.50688,3953.8,3953.4,0.4554]
[1761396541037,0.50688,3953.8,3953.3,0.002]
[1761396541270,0.0977,3953.7,3953.3,0.002]
[1761396542255,0.50688,3953.8,3953.3,0.002]
[1761396542771,0.0977,3953.7,3953.3,0.002]
[1761396544183,0.50688,3953.8,3953.3,0.002]
[1761396544688,0.0977,3954.6,3953.3,0.4574]
[1761396544842,0.31647733,3955.4,3953.3,3.01221295]
[1761396544843,2.52863526,3954.8,3953.3,3.01221295]
[1761396545181,1.6816,3954.4,3953.8,0.1264]
[1761396545539,0.0977,3954.3,3953.8,0.1264]
[1761396546569,0.0977,3954.3,3953.3,0.002]
[1761396546570,0.50688,3954.2,3953.3,0.002]
[1761396546772,0.1264,3954.0,3953.4,0.1264]
[1761396547357,0.1264,3954.0,3953.4,0.39219201]
[1761396547585,1.6816,3954.2,3953.6,0.1264]
[1761396548209,0.1264,3954.2,3953.6,0.1264]
[1761396548363,2.52818366,3955.5,3953.5,0.4554]
[1761396548364,2.69726128,3954.9,3954.1,0.2244]
[1761396548554,0.1264,3954.7,3954.1,0.2244]
[1761396548885,0.1264,3954.7,3954.1,0.8005]
[1761396549457,0.1687,3954.9,3954.2,0.4497]
[1761396549458,1.6816,3954.8,3954.2,0.4497]
[1761396550267,0.1264,3954.8,3954.2,0.4497]
[1761396550890,0.1264,3955.1,3954.5,0.1264]
[1761396551290,0.001,3954.8,3954.5,0.1264]
[1761396551688,0.001,3954.8,3954.5,0.5761]
[1761396552996,0.001,3954.8,3954.5,0.1264]
[1761396556279,0.001,3954.8,3954.7,2.52863681]
[1761396556482,0.001,3954.8,3954.7,3.08187139]
[1761396556685,0.001,3954.8,3954.7,3.53157139]
[1761396558407,0.001,3954.8,3954.7,6.77657139]
[1761396561399,0.001,3954.8,3954.7,6.32687139]
[1761396561712,0.001,3954.8,3954.7,6.77657139]
[1761396563314,0.001,3954.8,3954.7,6.77157139]
[1761396566294,0.001,3954.8,3954.7,6.89797139]
[1761396567424,0.001,3954.8,3954.7,6.77157139]
[1761396576044,0.001,3954.8,3954.7,6.32187139]
[1761396576260,0.001,3954.8,3954.7,6.77157139]
[1761396577375,0.001,3954.8,3954.7,6.89797139]
[1761396579981,0.001,3954.8,3954.7,6.44827139]
[1761396580371,0.001,3954.8,3954.7,6.88377139]
[1761396581783,0.001,3954.8,3954.7,6.44827139]
[1761396582462,0.001,3954.8,3954.7,6.88377139]
[1761396585403,0.001,3955.3,3955.2,2.52831715]
[1761396585404,1e-08,3955.3,3955.2,2.52831715]
[1761396585568,1e-08,3955.3,3955.2,7.2858903]
[1761396585899,1e-08,3955.3,3955.2,7.7213903]
[1761396587402,0.67877671,3957.8,3957.2,2.52702152]
[1761396587569,1.0797983,3958.0,3957.5,0.1264]
[1761396587570,0.2952,3958.0,3957.5,0.1264]
[1761396587773,0.099,3957.9,3957.5,0.1264]
[1761396588185,0.2952,3958.0,3957.5,0.1264]
[1761396588401,0.2952,3958.0,3956.2,0.2362]
[1761396588402,1.5552,3957.7,3956.2,0.2362]
[1761396588568,1.5552,3957.7,3955.9,0.4355]
[1761396588569,0.50688,3957.5,3955.9,1.11139701]
[1761396588909,2.06208,3957.3,3956.3,2.52758889]
[1761396589108,0.50688,3957.3,3956.4,5.7555416]
[1761396589408,0.56780147,3957.2,3956.4,3.228]
[1761396589608,0.099,3957.2,3956.4,5.75554258]
[1761396589783,0.099,3957.1,3956.4,3.228]
[1761396589983,0.1009,3956.5,3956.4,3.228]
[1761396590302,0.1009,3956.5,3956.1,3.227]
[1761396590484,0.0991,3956.4,3956.1,3.227]
[1761396595393,0.37184734,3956.4,3956.1,3.227]
[1761396595905,0.37184734,3956.4,3955.4,2.52815194]
[1761396595906,0.0991,3956.3,3955.4,2.52815194]
[1761396596213,0.0991,3956.3,3955.5,5.75211842]
[1761396597580,2.62676629,3956.3,3955.5,3.224]
[1761396597817,0.55279121,3956.2,3955.5,3.224]
[1761396598028,0.65249121,3956.2,3955.5,3.224]
[1761396598323,0.0997,3956.1,3955.8,0.1264]
[1761396598976,0.1674,3955.9,3955.8,0.1264]
[1761396599494,0.2678,3955.9,3955.8,0.1264]
[1761396600117,0.1674,3955.9,3955.8,0.1264]
[1761396600937,0.55279121,3956.2,3955.8,0.1264]
[1761396601637,0.1264,3956.3,3955.8,0.1264]
[1761396601939,0.1682,3955.9,3955.5,3.224]
[1761396602149,0.1682,3955.9,3955.7,0.1264]
[1761396602441,0.2679,3955.9,3955.7,0.1264]
[1761396602842,0.1682,3955.9,3955.7,0.1264]
[1761396603245,0.1264,3956.3,3955.7,2.65439051]
[1761396603553,0.1264,3956.3,3955.8,0.002]
[1761396603714,1.6816,3956.3,3955.8,0.002]
[1761396604051,0.66794508,3956.3,3955.8,0.002]
[1761396604212,0.1004,3956.2,3955.8,0.002]
[1761396604934,0.1668,3955.9,3955.8,0.002]
[1761396607962,4.98414976,3955.9,3955.8,0.002]
[1761396613066,4.85774976,3955.9,3955.8,0.002]
[1761396613257,6.04707917,3955.9,3955.8,0.002]
[1761396616748,9.18222225,3955.9,3955.8,0.002]
[1761396616951,9.63452225,3955.9,3955.8,0.002]
[1761396617346,4.59046107,3955.1,3953.7,0.2362]
[1761396617551,7.72560415,3955.1,3954.1,0.2218]
[1761396617776,8.85199433,3955.1,3954.1,0.2218]
[1761396618389,8.85199433,3955.1,3953.8,0.4523]
[1761396619454,8.85199433,3955.1,3954.1,0.6741]
[1761396622807,8.85199433,3955.1,3954.6,0.002]
[1761396623001,8.97839433,3955.1,3954.6,0.002]
[1761396623899,8.87739433,3955.1,3954.6,0.002]
[1761396624092,8.97839433,3955.1,3954.6,0.002]
[1761396625470,12.11353741,3955.1,3954.6,0.002]
[1761396627706,8.97839433,3955.1,3954.6,0.002]
[1761396627909,12.11353741,3955.1,3954.6,0.002]
[1761396628997,12.21479028,3955.1,3954.6,0.002]
[1761396630827,9.0796472,3955.1,3954.6,0.002]
[1761396632784,8.97839433,3955.1,3954.6,0.002]
[1761396633208,5.74225125,3955.1,3954.6,0.002]
[1761396633481,8.87739433,3955.1,3954.6,0.002]
[1761396634515,8.87061497,3955.1,3954.6,0.002]
[1761396635491,8.87061497,3955.1,3954.7,0.4523]
[1761396638134,8.87061497,3955.1,3954.6,0.002]
[1761396638700,8.97161497,3955.1,3954.6,0.002]
[1761396639232,9.65079065,3955.1,3954.6,0.002]
[1761396639400,12.78593373,3955.1,3954.6,0.002]
[1761396639595,12.10675805,3955.1,3954.6,0.002]
[1761396640002,12.10775805,3955.1,3954.6,0.002]
[1761396640214,3.03551681,3954.7,3954.6,0.002]
[1761396640435,8.5641869,3954.7,3954.6,0.002]
[1761396640637,8.6631869,3954.7,3954.6,0.002]
[1761396642438,9.34380111,3954.7,3954.6,0.002]
[1761396643014,8.5641869,3954.7,3954.6,0.002]
[1761396643348,8.8993869,3954.7,3954.6,0.002]
[1761396644202,9.80660204,3954.7,3954.6,0.002]
[1761396645339,8.8003869,3954.7,3954.6,0.002]
[1761396645912,8.8993869,3954.7,3954.6,0.002]
[1761396649312,8.8003869,3954.7,3954.6,0.002]
[1761396649535,7.85225989,3954.7,3954.6,0.4332]
[1761396649840,7.85225989,3954.7,3954.6,0.002]
[1761396651747,8.76178306,3954.7,3954.6,0.002]
[1761396654641,2.52889259,3954.3,3954.2,0.002]
[1761396654846,8.12895268,3954.3,3954.2,0.002]
[1761396657276,7.21923567,3954.3,3954.2,0.002]
[1761396659443,7.31963567,3954.3,3954.2,0.002]
[1761396659644,7.21923567,3954.3,3954.2,0.002]
[1761396659844,9.09617124,3954.3,3954.2,0.002]
[1761396660093,9.19657124,3954.3,3954.2,0.002]
[1761396660484,9.29784334,3954.3,3954.2,0.002]
[1761396661971,10.20686882,3954.3,3954.2,0.002]
[1761396663674,4.59103655,3954.2,3954.1,0.002]
[1761396663999,4.08434843,3953.9,3953.8,0.002]
[1761396664202,11.26359029,3953.9,3953.8,0.002]
[1761396664492,8.12844721,3953.9,3953.8,0.002]
[1761396664659,8.35612264,3953.9,3953.8,0.002]
[1761396664858,8.91092674,3953.9,3953.8,0.002]
[1761396665183,8.91092674,3953.9,3953.8,0.4701]
[1761396665498,8.91092674,3953.9,3953.8,0.002]
[1761396665869,9.41780674,3953.9,3953.8,0.002]
[1761396666469,9.31653131,3953.9,3953.8,0.002]
[1761396669802,10.32588701,3953.9,3953.8,0.002]
[1761396670003,9.41693131,3953.9,3953.8,0.002]
[1761396670781,9.31653131,3953.9,3953.8,0.002]
[1761396671507,10.22497753,3953.9,3953.8,0.002]
[1761396676204,10.22497753,3953.9,3953.8,0.4532]
[1761396677324,10.22497753,3953.9,3953.8,0.002]
[1761396678795,10.9219463,3953.9,3953.8,0.002]
[1761396679331,10.9219463,3953.9,3953.8,0.4532]
[1761396679814,10.9219463,3953.9,3953.8,0.002]
[1761396680922,3.03615637,3953.7,3953.6,0.002]
[1761396681117,5.62635887,3953.7,3953.6,0.002]
[1761396685012,5.26337348,3953.7,3953.6,0.002]
[1761396686236,5.62717668,3953.7,3953.6,0.4532]
[1761396686932,4.71775637,3953.7,3953.6,0.4532]
[1761396688429,5.62717668,3953.7,3953.6,0.4532]
[1761396689637,5.62717668,3953.7,3953.6,0.002]
[1761396691544,5.62717668,3953.7,3953.6,0.4532]
[1761396693045,6.60079002,3953.7,3953.6,0.002]
[1761396693446,5.69136971,3953.7,3953.6,0.002]
[1761396693821,7.05806146,3953.7,3953.6,0.002]
[1761396694447,5.69136971,3953.7,3953.6,0.002]
[1761396695125,7.60436655,3953.7,3953.6,0.002]
[1761396696361,2.52948373,3953.4,3952.5,0.002]
[1761396696648,0.50688,3952.7,3952.5,0.002]
[1761396696950,1.5552,3952.8,3952.5,0.002]
[1761396696951,5.26476535,3952.6,3952.5,0.002]
[1761396697542,6.17462364,3952.6,3952.5,0.002]
[1761396697761,6.90801094,3952.6,3952.5,0.002]
[1761396700659,7.5896144,3952.6,3952.5,0.002]
[1761396700857,6.90801094,3952.6,3952.5,0.002]
[1761396701468,7.58945245,3952.6,3952.5,0.002]
[1761396702047,7.58945245,3952.6,3952.5,0.4765]
[1761396702774,7.58945245,3952.6,3952.5,0.002]
[1761396705538,6.90801094,3952.6,3952.5,0.002]
[1761396712247,6.90901094,3952.6,3952.5,0.002]
[1761396713683,0.54730509,3952.6,3952.5,0.4765]
[1761396713893,0.001,3952.6,3952.5,0.4765]
[1761396714106,2.06308,3952.6,3952.5,0.4765]
[1761396714268,0.001,3952.6,3952.5,0.4765]
[1761396721000,0.001,3952.6,3952.5,0.002]
[1761396721302,2.53098026,3952.6,3952.5,0.002]
[1761396721502,3.07590917,3952.6,3952.5,0.002]
[1761396721701,3.58278917,3952.6,3952.5,0.002]
[1761396723374,3.58278917,3952.6,3952.5,0.4686]
[1761396723770,3.70918917,3952.6,3952.5,0.002]
[1761396724508,5.26438917,3952.6,3952.5,0.002]
[1761396724878,5.94621661,3952.6,3952.5,0.002]
[1761396725085,5.26438917,3952.6,3952.5,0.002]
[1761396725311,6.5279118,3952.6,3952.5,0.002]
[1761396725489,3.03698828,3952.4,3952.3,0.002]
[1761396725686,9.09562904,3952.4,3952.3,0.002]
[1761396726279,9.09562904,3952.4,3952.1,0.002]
[1761396726280,3.03711632,3952.2,3952.1,0.002]
[1761396726487,6.6727376,3952.2,3952.1,0.002]
[1761396726810,4.08556437,3952.0,3951.9,0.002]
[1761396726990,8.58900513,3952.0,3951.9,0.002]
[1761396728432,9.19488513,3952.0,3951.9,0.002]
[1761396728635,9.19488513,3952.0,3951.4,0.002]
[1761396728636,4.59276455,3951.5,3951.4,0.002]
[1761396728937,9.77813851,3951.5,3951.4,0.002]
[1761396729339,8.96980531,3951.5,3951.4,0.002]
[1761396732954,8.96980531,3951.5,3951.4,0.4394]
[1761396733356,8.96980531,3951.5,3951.4,0.002]
[1761396733560,10.18803904,3951.5,3951.4,0.002]
[1761396738761,9.49733821,3951.5,3951.4,0.002]
[1761396739468,9.62373821,3951.5,3951.4,0.002]
[1761396743675,0.50688,3951.1,3950.6,0.2323]
[1761396743881,7.86108802,3950.7,3950.6,0.2323]
[1761396744243,7.86108802,3950.7,3950.6,0.6697]
[1761396745167,2.18848,3950.7,3950.6,0.6697]
[1761396745376,4.719677,3950.7,3950.6,0.6697]
[1761396745751,4.719677,3950.7,3950.6,0.2323]
[1761396745952,4.719677,3950.7,3950.6,0.6697]
[1761396747291,4.719677,3950.7,3949.8,2.6581634]
[1761396747292,2.53146849,3950.3,3950.0,0.6534]
[1761396747585,2.53130405,3950.6,3950.3,0.2323]
[1761396747586,4.59348489,3950.4,3950.3,0.2323]
[1761396747968,4.71988489,3950.4,3950.3,0.2323]
[1761396748392,4.71988489,3950.4,3950.3,0.6697]
[1761396748554,7.86129591,3950.4,3950.3,0.6697]
[1761396748961,5.32989102,3950.4,3950.3,0.6697]
[1761396749897,7.86128024,3950.4,3950.3,0.6697]
[1761396752089,2.18848,3950.4,3950.3,0.6697]
[1761396753478,1.5552,3950.4,3950.3,0.6697]
[1761396753883,1.5552,3950.4,3950.3,1.01142354]
[1761396756695,1.5552,3950.4,3950.3,0.6697]
[1761396764628,4.08658922,3950.4,3950.3,0.6697]
[1761396764914,1.5552,3950.4,3950.3,0.6697]
[1761396765113,1.5552,3950.4,3950.3,0.2323]
[1761396765281,1.5552,3950.4,3950.3,0.671]
[1761396765711,2.10171947,3950.4,3950.3,0.671]
[1761396766504,5.13998869,3950.4,3950.3,0.002]
[1761396766689,7.02958806,3950.4,3950.3,0.002]
[1761396767513,6.34765486,3950.4,3950.3,0.002]
[1761396768620,2.73499947,3950.4,3950.3,0.002]
[1761396768817,5.26638869,3950.4,3950.3,0.4387]
[1761396769398,5.26638869,3950.4,3950.3,0.002]
[1761396772408,5.26638869,3950.4,3950.3,0.4387]
[1761396772617,2.73499947,3950.4,3950.3,0.4387]
[1761396772805,2.22811947,3950.4,3950.3,0.4387]
[1761396774829,1.5552,3950.4,3950.3,0.4387]
[1761396775009,1.5552,3950.4,3950.3,1.01229157]
[1761396777534,0.50788,3951.1,3950.3,1.01229157]
[1761396777698,1.5552,3951.0,3950.4,0.46201389]
[1761396777895,0.1264,3951.0,3950.4,0.58841389]
[1761396778110,0.1264,3951.0,3950.5,2.53130633]
[1761396778309,0.1264,3951.0,3950.6,0.4367]
[1761396778829,0.1264,3951.0,3950.4,0.1264]
[1761396778830,3.14141102,3950.7,3950.4,0.1264]
[1761396779207,3.14141102,3950.7,3950.4,0.5782]
[1761396779421,3.14141102,3950.7,3950.3,0.76203339]
[1761396779635,5.79905361,3950.7,3950.3,0.002]
[1761396779813,5.79905361,3950.7,3950.3,0.4538]
[1761396780827,3.26781102,3950.7,3950.3,0.4538]
[1761396781031,3.26781102,3950.7,3950.3,3.6489932]
[1761396781032,0.1264,3950.7,3950.3,3.6489932]
[1761396781332,0.1264,3950.7,3950.3,3.67430773]
[1761396781523,0.1264,3950.7,3950.4,0.4518]
[1761396782114,0.67227341,3951.0,3950.4,0.5782]
[1761396782309,0.67227341,3951.0,3950.5,0.33458002]
[1761396782532,0.67227341,3951.0,3950.5,0.81169327]
[1761396782833,0.67227341,3951.0,3950.6,0.4518]
[1761396783126,1.5562,3951.1,3950.6,2.98305662]
[1761396783127,0.001,3951.1,3950.6,2.98305662]
[1761396783326,0.001,3951.1,3950.7,0.1264]
[1761396783530,0.001,3951.1,3950.7,0.92260366]
[1761396783730,0.001,3951.1,3950.7,0.5782]
[1761396783896,0.001,3951.1,3950.8,0.4518]
[1761396785320,2.06208,3950.8,3950.7,0.1264]
[1761396785519,3.03826922,3950.4,3950.3,0.002]
[1761396785748,6.72534974,3950.4,3950.3,0.002]
[1761396788137,6.17968024,3950.4,3950.3,0.002]
[1761396788445,0.50688,3950.4,3950.3,0.4626]
[1761396789315,1.5552,3950.6,3950.3,0.4626]
[1761396789545,1.0082594,3951.3,3950.3,0.002]
[1761396789546,3.14141102,3950.4,3950.3,0.002]
[1761396789721,0.001,3951.1,3950.4,0.6976]
[1761396789915,0.001,3951.1,3950.4,3.22898287]
[1761396790119,0.001,3951.1,3950.5,0.4606]
[1761396790314,0.001,3951.1,3950.5,2.99191722]
[1761396790514,0.001,3951.1,3950.6,2.9918478]
[1761396790719,0.001,3951.1,3950.7,0.4606]
[1761396795323,0.001,3951.1,3950.4,2.7683804]
[1761396795324,3.14141102,3951.0,3950.4,0.6976]
[1761396795524,3.14141102,3951.0,3950.5,0.1264]
[1761396795941,3.14141102,3950.7,3950.5,0.1264]
[1761396796329,3.14141102,3950.7,3950.5,0.587]
[1761396796939,4.69661102,3951.0,3950.5,0.1264]
[1761396797128,4.69661102,3951.0,3950.6,0.4606]
[1761396798751,0.50688,3950.9,3950.5,0.1264]
[1761396798958,0.1264,3950.8,3950.4,0.237]
[1761396799157,0.1264,3950.8,3950.4,0.6976]
[1761396799357,0.1264,3950.8,3950.3,0.1284]
[1761396799556,3.14141102,3950.7,3950.3,0.002]
[1761396799857,5.79920024,3950.4,3950.3,0.002]
[1761396800231,3.26781102,3950.4,3950.3,0.002]
[1761396800863,0.1264,3950.4,3950.3,0.002]
[1761396807867,3.16466922,3950.4,3950.3,0.002]
[1761396808065,8.55749459,3950.4,3950.3,0.002]
[1761396808266,10.47634517,3950.4,3950.3,0.002]
[1761396808939,10.37734517,3950.4,3950.3,0.002]
[1761396813566,6.5397198,3950.4,3950.3,0.002]
[1761396813777,5.26542154,3950.4,3950.3,0.002]
[1761396816358,5.26542154,3950.4,3950.3,0.4626]
[1761396817073,5.26542154,3950.4,3950.3,0.002]
[1761396818180,2.73403232,3950.4,3950.3,0.43]
[1761396818376,2.73371006,3950.4,3950.3,0.43]
[1761396818751,2.73371006,3950.4,3950.3,0.002]
[1761396819481,5.26509928,3950.4,3950.3,0.002]
[1761396819677,4.71986922,3950.4,3950.3,0.002]
[1761396819866,5.26504572,3950.4,3950.3,0.002]
[1761396820446,4.71986922,3950.4,3950.3,0.002]
[1761396820853,5.26508851,3950.4,3950.3,0.002]
[1761396825307,5.26508851,3950.4,3950.3,0.43]
[1761396827685,2.10041929,3950.4,3950.3,0.43]
[1761396827889,1.5552,3950.4,3950.3,0.43]
[1761396830698,0.001,3951.1,3950.3,0.43]
[1761396830869,0.001,3951.1,3950.5,2.53126625]
[1761396831065,0.001,3951.1,3950.7,2.53117475]
[1761396831275,0.001,3951.1,3950.7,2.531197]
[1761396831475,0.001,3951.1,3950.3,0.43]
[1761396831476,0.50688,3950.4,3950.3,0.002]
[1761396831697,2.53121179,3950.7,3950.3,0.002]
[1761396831874,1.5552,3950.5,3950.4,0.428]
[1761396832070,2.53132514,3950.5,3950.4,0.428]
[1761396833699,4.08652514,3950.5,3950.4,0.428]
[1761396834000,4.08652514,3950.5,3950.3,0.002]
[1761396834203,4.08652514,3950.5,3950.3,0.43]
[1761396838695,1.5552,3950.5,3950.3,0.43]
[1761396840004,4.08652666,3950.5,3950.3,0.43]
[1761396840391,2.53138922,3950.4,3950.3,0.002]
[1761396840585,4.08653938,3950.5,3950.3,0.002]
[1761396841706,4.08653938,3950.5,3950.4,0.4453]
[1761396842209,4.08653938,3950.5,3950.3,0.4473]
[1761396842707,2.53138922,3950.4,3950.3,0.4473]
[1761396843510,4.08654358,3950.5,3950.3,0.4473]
[1761396843689,2.53138922,3950.4,3950.3,0.002]
[1761396848300,2.53138922,3950.4,3950.3,0.475]
[1761396849713,4.21293102,3950.5,3950.3,0.475]
[1761396849913,2.53138922,3950.4,3950.3,0.475]
[1761396850109,1.5552,3950.5,3950.3,0.475]
[1761396850289,4.08656897,3950.5,3950.3,0.475]
[1761396851189,2.53138922,3950.4,3950.3,0.475]
[1761396851815,4.08653381,3950.5,3950.3,0.475]
[1761396853009,1.5552,3950.5,3950.3,0.475]
[1761396853713,2.53138922,3950.4,3950.3,0.475]
[1761396854712,6.36901459,3950.4,3950.3,0.002]
[1761396855328,2.53138922,3950.4,3950.3,0.002]
[1761396859197,3.68422495,3950.4,3950.3,0.002]
[1761396859420,9.87787635,3950.4,3950.3,0.002]
[1761396860002,9.77817635,3950.4,3950.3,0.002]
[1761396860330,9.87787635,3950.4,3950.3,0.002]
[1761396860508,9.77817635,3950.4,3950.3,0.002]
[1761396860702,9.08268053,3950.4,3950.3,0.002]
[1761396863509,8.4082545,3950.4,3950.3,0.002]
[1761396868125,8.5079545,3950.4,3950.3,0.002]
[1761396868494,8.4082545,3950.4,3950.3,0.002]
[1761396869098,8.5079545,3950.4,3950.3,0.002]
[1761396872428,8.4082545,3950.4,3950.3,0.002]
[1761396872636,8.5079545,3950.4,3950.3,0.002]
[1761396873002,9.68007347,3950.4,3950.3,0.002]
[1761396874031,10.36203759,3950.4,3950.3,0.002]
[1761396876020,9.68007347,3950.4,3950.3,0.002]
[1761396876217,6.43824392,3950.4,3950.3,0.002]
[1761396876417,6.43824392,3950.4,3949.7,0.473]
[1761396876418,4.08702542,3949.8,3949.7,0.473]
[1761396876736,4.75968115,3949.8,3949.7,0.473]
[1761396877637,4.75968115,3949.8,3947.5,0.473]
[1761396877638,3.03891018,3949.4,3947.5,0.473]
[1761396877825,3.14212955,3948.0,3947.4,0.6464]
[1761396878030,2.53306832,3947.8,3947.4,0.2188]
[1761396878207,2.53306832,3947.8,3947.5,0.4276]
[1761396879204,2.06208,3947.9,3947.5,0.4276]
[1761396879409,1.5552,3947.9,3947.5,0.4276]
[1761396880126,2.53299647,3947.9,3947.5,0.4276]
[1761396880512,2.5330573,3947.8,3947.5,0.4276]
[1761396881145,2.53299092,3948.0,3947.5,0.4276]
[1761396881351,1.5552,3947.9,3947.5,0.4276]
[1761396883727,2.53280433,3948.2,3947.6,0.02533184]
[1761396883931,1.5552,3948.4,3948.1,0.2172]
[1761396884245,4.08787167,3948.4,3948.1,0.2172]
[1761396884427,3.14212955,3948.8,3948.2,0.4276]
[1761396884635,0.50688,3948.5,3948.2,0.4276]
[1761396885140,1.5552,3948.4,3948.1,0.2172]
[1761396885307,1.5552,3948.4,3948.3,0.4276]
[1761396886576,1.5552,3948.5,3948.3,0.4276]
[1761396886740,4.08781399,3948.5,3948.3,0.4276]
[1761396887165,1.5552,3948.5,3948.3,0.4276]
[1761396887477,2.53246828,3948.8,3948.3,0.4276]
[1761396887649,2.65886828,3948.8,3948.3,0.4276]
[1761396887850,1.5552,3948.6,3948.3,0.4276]
[1761396888975,0.1264,3948.8,3948.3,0.4276]
[1761396889273,2.6588262,3948.8,3948.3,0.4276]
[1761396889674,0.1264,3948.8,3948.3,0.4276]
[1761396890066,1.5552,3949.1,3948.3,0.4276]
[1761396890067,0.50688,3949.0,3948.3,0.4276]
[1761396890249,2.65880014,3948.9,3948.3,0.4276]
[1761396890653,2.53242755,3948.8,3948.3,0.4276]
[1761396891871,1.5552,3948.7,3948.4,0.4276]
[1761396892936,1.5552,3948.7,3948.2,0.1264]
[1761396893142,4.08768393,3948.7,3948.3,0.4276]
[1761396897773,1.5552,3948.5,3948.3,0.4276]
[1761396898979,1.5552,3948.5,3948.2,0.1264]
[1761396899282,1.5552,3948.5,3948.2,0.5713]
[1761396901273,1.5552,3948.5,3948.3,0.4449]
[1761396903348,1.5552,3948.5,3948.2,0.1264]
[1761396903659,1.5552,3948.6,3948.2,0.5713]
[1761396904276,1.5552,3948.8,3948.3,0.4449]
[1761396904481,0.1264,3948.9,3948.3,0.4449]
[1761396904651,0.67098598,3948.9,3948.3,2.97762879]
[1761396904850,1.5552,3948.8,3948.3,0.4449]
[1761396905050,1.5552,3948.8,3948.4,0.4449]
[1761396906343,0.54507197,3948.7,3948.4,0.4449]
[1761396907259,2.10027197,3948.7,3948.4,0.4449]
[1761396907458,0.54507197,3948.6,3948.4,0.4449]
[1761396909192,0.54507197,3948.8,3948.4,0.4449]
[1761396909374,0.54507197,3948.7,3948.4,0.4449]
[1761396909765,0.54507197,3948.8,3948.4,0.4449]
[1761396910077,0.68257112,3949.1,3948.6,0.1264]
[1761396910078,0.1264,3949.1,3948.6,0.1264]